[Event "Early-Titled-Tuesday-Blitz-October-10-2023"]
[Site "Chess.com"]
[Date "2023.10.10"]
[Round "3"]
[White "sergiochess83"]
[Black "zimmm36"]
[Result "0-1"]
[WhiteElo "2884"]
[BlackElo "2684"]
[TimeControl "180+1"]
[EndTime "8:27:32 PDT"]
[Termination "zimmm36 won by resignation"]

1. d4 {[%clk 0:02:55.7]} 1... d5 {[%clk 0:02:59.7]} 2. c4 {[%clk 0:02:55.5]}
2... e6 {[%clk 0:02:59.8]} 3. Nc3 {[%clk 0:02:55.6]} 3... Nf6 {[%clk 0:02:58.9]}
4. cxd5 {[%clk 0:02:55.2]} 4... Nxd5 {[%clk 0:02:58.9]} 5. e4 {[%clk 0:02:54.7]}
5... Nxc3 {[%clk 0:02:59.5]} 6. bxc3 {[%clk 0:02:55.6]} 6... c5 {[%clk
0:03:00.3]} 7. Rb1 {[%clk 0:02:56.1]} 7... Be7 {[%clk 0:02:59.4]} 8. Nf3 {[%clk
0:02:55.7]} 8... O-O {[%clk 0:02:59.2]} 9. Bd3 {[%clk 0:02:55.7]} 9... Nc6
{[%clk 0:02:58.1]} 10. d5 {[%clk 0:02:50.8]} 10... Na5 {[%clk 0:02:40.2]} 11. c4
{[%clk 0:02:46.3]} 11... b5 {[%clk 0:01:56.5]} 12. cxb5 {[%clk 0:01:22.6]} 12...
c4 {[%clk 0:01:56.6]} 13. Bc2 {[%clk 0:01:19.3]} 13... exd5 {[%clk 0:01:34]} 14.
Qxd5 {[%clk 0:00:55.4]} 14... Qxd5 {[%clk 0:01:33.6]} 15. exd5 {[%clk
0:00:56.3]} 15... Bb7 {[%clk 0:01:33.9]} 16. Bd2 {[%clk 0:00:54.9]} 16... Bd8
{[%clk 0:01:34.3]} 17. O-O {[%clk 0:00:44.5]} 17... c3 {[%clk 0:01:34.5]} 18.
Bxc3 {[%clk 0:00:41.2]} 18... Rc8 {[%clk 0:01:34.6]} 19. Bxa5 {[%clk 0:00:41.3]}
19... Bxa5 {[%clk 0:01:35.5]} 20. Bb3 {[%clk 0:00:40.6]} 20... Bb6 {[%clk
0:01:34]} 21. Ne5 {[%clk 0:00:40]} 21... Rcd8 {[%clk 0:01:27.2]} 22. Nc6 {[%clk
0:00:39.7]} 22... Rd6 {[%clk 0:01:27.1]} 23. Rfe1 {[%clk 0:00:36.7]} 23... g6
{[%clk 0:01:22.7]} 24. a4 {[%clk 0:00:36.8]} 24... Rf6 {[%clk 0:01:15.8]} 25.
Re2 {[%clk 0:00:33.9]} 25... a5 {[%clk 0:01:16.2]} 26. g3 {[%clk 0:00:31.1]}
26... g5 {[%clk 0:01:12.3]} 27. Kg2 {[%clk 0:00:31]} 27... Kg7 {[%clk
0:01:11.5]} 28. f3 {[%clk 0:00:28.7]} 28... Bc8 {[%clk 0:01:08.9]} 29. Bc2
{[%clk 0:00:24.9]} 29... h5 {[%clk 0:01:07.6]} 30. Rd1 {[%clk 0:00:22.2]} 30...
Bc5 {[%clk 0:01:03.3]} 31. Nxa5 {[%clk 0:00:20.4]} 31... h4 {[%clk 0:00:38.3]}
32. Be4 {[%clk 0:00:19.1]} 32... Rh6 {[%clk 0:00:34]} 33. Nc6 {[%clk 0:00:16.7]}
33... hxg3 {[%clk 0:00:33.7]} 34. hxg3 {[%clk 0:00:16.7]} 34... Bh3+ {[%clk
0:00:33.9]} 0-1

[Event "Early-Titled-Tuesday-Blitz-October-10-2023"]
[Site "Chess.com"]
[Date "2023.10.10"]
[Round "3"]
[White "ExcitingTrap"]
[Black "Hasangatin_Ramil"]
[Result "0-1"]
[WhiteElo "2474"]
[BlackElo "2721"]
[TimeControl "180+1"]
[EndTime "8:27:32 PDT"]
[Termination "Hasangatin_Ramil won on time"]

1. e4 {[%clk 0:03:00.9]} 1... d5 {[%clk 0:02:58.1]} 2. exd5 {[%clk 0:02:59.6]}
2... Qxd5 {[%clk 0:02:59]} 3. d4 {[%clk 0:02:55.9]} 3... Qe6+ {[%clk 0:02:58.9]}
4. Be2 {[%clk 0:02:52]} 4... Nf6 {[%clk 0:02:58.8]} 5. Nf3 {[%clk 0:02:51.3]}
5... c6 {[%clk 0:02:59]} 6. O-O {[%clk 0:02:51.2]} 6... g6 {[%clk 0:02:58.7]} 7.
Bf4 {[%clk 0:02:49.7]} 7... Bg7 {[%clk 0:02:58.8]} 8. Re1 {[%clk 0:02:49.3]}
8... O-O {[%clk 0:02:58.6]} 9. c4 {[%clk 0:02:41.7]} 9... Qf5 {[%clk 0:02:57]}
10. Bg3 {[%clk 0:02:34.8]} 10... Qa5 {[%clk 0:02:53.1]} 11. Nbd2 {[%clk
0:02:24.3]} 11... Bg4 {[%clk 0:02:51.3]} 12. h3 {[%clk 0:02:22.2]} 12... Bxf3
{[%clk 0:02:51.2]} 13. Nxf3 {[%clk 0:02:20.2]} 13... Nbd7 {[%clk 0:02:50.8]} 14.
Qc2 {[%clk 0:02:12.6]} 14... e6 {[%clk 0:02:42.6]} 15. Bd6 {[%clk 0:02:07.2]}
15... Rfe8 {[%clk 0:02:42]} 16. b4 {[%clk 0:02:07.6]} 16... Qd8 {[%clk
0:02:41.6]} 17. Bd3 {[%clk 0:02:03.2]} 17... a6 {[%clk 0:02:39.5]} 18. a4 {[%clk
0:02:02.7]} 18... Nf8 {[%clk 0:02:33]} 19. Be5 {[%clk 0:02:00]} 19... Nh5 {[%clk
0:02:26.5]} 20. Rad1 {[%clk 0:01:52]} 20... Bxe5 {[%clk 0:02:23.5]} 21. dxe5
{[%clk 0:01:48.8]} 21... Qe7 {[%clk 0:02:23.2]} 22. Qc3 {[%clk 0:01:41.7]} 22...
Red8 {[%clk 0:02:21.1]} 23. Be4 {[%clk 0:01:40.2]} 23... Rxd1 {[%clk 0:02:17]}
24. Rxd1 {[%clk 0:01:41.1]} 24... Rd8 {[%clk 0:02:17.6]} 25. Rxd8 {[%clk
0:01:32.6]} 25... Qxd8 {[%clk 0:02:18.5]} 26. Kh2 {[%clk 0:01:28.9]} 26... Qd1
{[%clk 0:02:15.3]} 27. Qc2 {[%clk 0:01:16.3]} 27... Qxc2 {[%clk 0:02:11]} 28.
Bxc2 {[%clk 0:01:17.2]} 28... Nd7 {[%clk 0:02:09.3]} 29. Be4 {[%clk 0:01:14.4]}
29... Nb6 {[%clk 0:02:07.2]} 30. b5 {[%clk 0:01:08.4]} 30... cxb5 {[%clk
0:02:01.1]} 31. cxb5 {[%clk 0:00:52.9]} 31... Nxa4 {[%clk 0:02:00.4]} 32. Nd4
{[%clk 0:00:44.1]} 32... Nc5 {[%clk 0:01:52.1]} 33. Bxb7 {[%clk 0:00:30.2]}
33... axb5 {[%clk 0:01:49.6]} 34. Bf3 {[%clk 0:00:26.3]} 34... b4 {[%clk
0:01:47.1]} 35. Bd1 {[%clk 0:00:18.6]} 35... Nf4 {[%clk 0:01:46.2]} 36. Kg3
{[%clk 0:00:14.4]} 36... Nfd3 {[%clk 0:01:46.1]} 37. f4 {[%clk 0:00:12.8]} 37...
g5 {[%clk 0:01:35.4]} 38. fxg5 {[%clk 0:00:09.6]} 38... Nxe5 {[%clk 0:01:35.7]}
39. Kf4 {[%clk 0:00:08.7]} 39... Nc4 {[%clk 0:01:29.8]} 40. Nb3 {[%clk
0:00:03.8]} 40... Nxb3 {[%clk 0:01:27.9]} 41. Bxb3 {[%clk 0:00:04.7]} 41... Na5
{[%clk 0:01:28.5]} 42. Bc2 {[%clk 0:00:02.8]} 42... b3 {[%clk 0:01:28.5]} 43.
Bd3 {[%clk 0:00:01.9]} 43... b2 {[%clk 0:01:28.8]} 44. Ke3 {[%clk 0:00:02.2]}
44... Nc4+ {[%clk 0:01:29.1]} 45. Ke2 {[%clk 0:00:02.1]} 45... Na3 {[%clk
0:01:28.5]} 46. Kd2 {[%clk 0:00:01.5]} 46... b1=Q {[%clk 0:01:28.7]} 47. Bxb1
{[%clk 0:00:01.7]} 47... Nxb1+ {[%clk 0:01:29.6]} 48. Kc2 {[%clk 0:00:01.5]}
48... Na3+ {[%clk 0:01:30.4]} 0-1

[Event "Early-Titled-Tuesday-Blitz-October-10-2023"]
[Site "Chess.com"]
[Date "2023.10.10"]
[Round "3"]
[White "ChessRespected"]
[Black "ilya2700"]
[Result "1-0"]
[WhiteElo "2564"]
[BlackElo "2304"]
[TimeControl "180+1"]
[EndTime "8:27:33 PDT"]
[Termination "ChessRespected won by resignation"]

1. d4 {[%clk 0:03:00.9]} 1... d5 {[%clk 0:02:59.5]} 2. Nf3 {[%clk 0:03:00.8]}
2... Nf6 {[%clk 0:02:59]} 3. e3 {[%clk 0:03:00.7]} 3... c6 {[%clk 0:02:59.3]} 4.
c4 {[%clk 0:03:00]} 4... e6 {[%clk 0:02:58.9]} 5. Nc3 {[%clk 0:02:59.3]} 5...
Nbd7 {[%clk 0:02:55.7]} 6. Bd3 {[%clk 0:02:58.5]} 6... dxc4 {[%clk 0:02:55.3]}
7. Bxc4 {[%clk 0:02:59.4]} 7... b5 {[%clk 0:02:55.5]} 8. Bd3 {[%clk 0:02:58.8]}
8... Bd6 {[%clk 0:02:54.8]} 9. a4 {[%clk 0:02:58.9]} 9... b4 {[%clk 0:02:53.8]}
10. Ne4 {[%clk 0:02:59]} 10... Nxe4 {[%clk 0:02:53.4]} 11. Bxe4 {[%clk
0:02:59.9]} 11... Bb7 {[%clk 0:02:52.4]} 12. a5 {[%clk 0:02:59.9]} 12... a6
{[%clk 0:02:41.8]} 13. Qa4 {[%clk 0:02:59.6]} 13... Qc7 {[%clk 0:02:31.5]} 14.
Bd2 {[%clk 0:02:56.1]} 14... O-O {[%clk 0:02:29.6]} 15. Bxb4 {[%clk 0:02:54.8]}
15... c5 {[%clk 0:02:24.1]} 16. Bxb7 {[%clk 0:02:44.2]} 16... Qxb7 {[%clk
0:02:20.7]} 17. dxc5 {[%clk 0:02:32.2]} 17... Bxc5 {[%clk 0:02:08.6]} 18. Bc3
{[%clk 0:02:29.1]} 18... Nf6 {[%clk 0:01:52.5]} 19. Bxf6 {[%clk 0:02:25]} 19...
gxf6 {[%clk 0:01:53]} 20. O-O {[%clk 0:02:24.3]} 20... Qxb2 {[%clk 0:01:43.1]}
21. Rac1 {[%clk 0:02:21.2]} 21... Qb4 {[%clk 0:01:40.6]} 22. Qd7 {[%clk
0:02:02.4]} 22... Rfd8 {[%clk 0:01:33]} 23. Qc7 {[%clk 0:01:53]} 23... Rac8
{[%clk 0:01:32.7]} 24. Qg3+ {[%clk 0:01:52.3]} 24... Kh8 {[%clk 0:01:31.8]} 25.
Qh3 {[%clk 0:01:41]} 25... Rg8 {[%clk 0:01:22.1]} 26. Qh5 {[%clk 0:01:28.8]}
26... Be7 {[%clk 0:01:02]} 27. Rxc8 {[%clk 0:01:21.5]} 27... Rxc8 {[%clk
0:01:00.5]} 28. Qxf7 {[%clk 0:01:21.4]} 28... Qd6 {[%clk 0:00:52]} 29. Nd4
{[%clk 0:01:17.7]} 29... Rg8 {[%clk 0:00:24.9]} 30. Qxe6 {[%clk 0:01:04.7]}
30... Qxe6 {[%clk 0:00:21.1]} 31. Nxe6 {[%clk 0:01:05.6]} 31... Bb4 {[%clk
0:00:21.1]} 32. g3 {[%clk 0:01:01.6]} 32... Bxa5 {[%clk 0:00:16.2]} 33. Ra1
{[%clk 0:01:01.3]} 33... Re8 {[%clk 0:00:16.8]} 34. Nd4 {[%clk 0:00:50.3]} 34...
Bc3 {[%clk 0:00:16]} 35. Rxa6 {[%clk 0:00:50.4]} 1-0

[Event "Early-Titled-Tuesday-Blitz-October-10-2023"]
[Site "Chess.com"]
[Date "2023.10.10"]
[Round "3"]
[White "Druid24"]
[Black "MITerryble"]
[Result "0-1"]
[WhiteElo "2709"]
[BlackElo "3015"]
[TimeControl "180+1"]
[EndTime "8:27:34 PDT"]
[Termination "MITerryble won by checkmate"]

1. d4 {[%clk 0:02:59.6]} 1... e6 {[%clk 0:02:59.6]} 2. c4 {[%clk 0:02:58.4]}
2... b6 {[%clk 0:02:58.1]} 3. Nf3 {[%clk 0:02:50.6]} 3... Bb7 {[%clk 0:02:58.1]}
4. g3 {[%clk 0:02:50.3]} 4... Nf6 {[%clk 0:02:58]} 5. Bg2 {[%clk 0:02:48.8]}
5... g6 {[%clk 0:02:58.4]} 6. O-O {[%clk 0:02:48.3]} 6... Bg7 {[%clk 0:02:58.2]}
7. Nc3 {[%clk 0:02:47.2]} 7... Ne4 {[%clk 0:02:57]} 8. Bd2 {[%clk 0:02:39.9]}
8... Nxd2 {[%clk 0:02:52]} 9. Qxd2 {[%clk 0:02:39.9]} 9... d6 {[%clk 0:02:51.9]}
10. e4 {[%clk 0:02:38.6]} 10... Nd7 {[%clk 0:02:51.6]} 11. Rfe1 {[%clk
0:02:38.1]} 11... O-O {[%clk 0:02:51.3]} 12. Rad1 {[%clk 0:02:38.6]} 12... h6
{[%clk 0:02:49.2]} 13. h4 {[%clk 0:02:38.5]} 13... Qe7 {[%clk 0:02:49.2]} 14.
Nh2 {[%clk 0:02:20.1]} 14... Rad8 {[%clk 0:02:47.1]} 15. Ng4 {[%clk 0:02:19.4]}
15... Kh7 {[%clk 0:02:47.2]} 16. f4 {[%clk 0:02:15.1]} 16... c5 {[%clk
0:02:33.2]} 17. d5 {[%clk 0:02:15.1]} 17... Bd4+ {[%clk 0:02:15]} 18. Kh1 {[%clk
0:02:13.9]} 18... Nf6 {[%clk 0:02:15.3]} 19. Nxf6+ {[%clk 0:01:56.1]} 19... Qxf6
{[%clk 0:02:16.2]} 20. Nb5 {[%clk 0:01:53.1]} 20... e5 {[%clk 0:02:12.6]} 21.
Nxd4 {[%clk 0:01:49.9]} 21... cxd4 {[%clk 0:02:11]} 22. Rf1 {[%clk 0:01:47.7]}
22... Qe7 {[%clk 0:02:09.1]} 23. f5 {[%clk 0:01:44.5]} 23... Bc8 {[%clk
0:02:02.8]} 24. Bh3 {[%clk 0:01:43]} 24... Rg8 {[%clk 0:01:55.8]} 25. Kh2 {[%clk
0:01:38.5]} 25... g5 {[%clk 0:01:49.4]} 26. f6 {[%clk 0:01:35.8]} 26... Qc7
{[%clk 0:01:41.3]} 27. Bf5+ {[%clk 0:01:35.7]} 27... Bxf5 {[%clk 0:01:39.9]} 28.
Rxf5 {[%clk 0:01:36.6]} 28... g4 {[%clk 0:01:20.6]} 29. b3 {[%clk 0:01:32.4]}
29... Rc8 {[%clk 0:01:18.7]} 30. a4 {[%clk 0:01:25.1]} 30... Qc5 {[%clk
0:01:17.6]} 31. Rdf1 {[%clk 0:01:24.9]} 31... Qa3 {[%clk 0:01:11.7]} 32. Qd3
{[%clk 0:01:14.9]} 32... a6 {[%clk 0:01:07.9]} 33. Rh5 {[%clk 0:00:25.8]} 33...
Rg6 {[%clk 0:01:06.8]} 34. Rff5 {[%clk 0:00:20.6]} 34... b5 {[%clk 0:01:06]} 35.
Qd2 {[%clk 0:00:20.3]} 35... Qxb3 {[%clk 0:00:55.4]} 36. Rfg5 {[%clk 0:00:18.5]}
36... Qe3 {[%clk 0:00:55]} 37. Qb4 {[%clk 0:00:05.6]} 37... Rxc4 {[%clk
0:00:52.8]} 38. Qxd6 {[%clk 0:00:02.3]} 38... Qf2+ {[%clk 0:00:50.8]} 39. Kh1
{[%clk 0:00:01.6]} 39... Rc1# {[%clk 0:00:51.1]} 0-1

[Event "Early-Titled-Tuesday-Blitz-October-10-2023"]
[Site "Chess.com"]
[Date "2023.10.10"]
[Round "3"]
[White "krzyzan94"]
[Black "LeninGuerra"]
[Result "1-0"]
[WhiteElo "2786"]
[BlackElo "2564"]
[TimeControl "180+1"]
[EndTime "8:27:34 PDT"]
[Termination "krzyzan94 won by resignation"]

1. e4 {[%clk 0:02:59.7]} 1... c5 {[%clk 0:02:56.9]} 2. Nf3 {[%clk 0:02:59.5]}
2... e6 {[%clk 0:02:51.9]} 3. d4 {[%clk 0:02:58]} 3... cxd4 {[%clk 0:02:52.8]}
4. Nxd4 {[%clk 0:02:58.5]} 4... Nc6 {[%clk 0:02:52.7]} 5. Nc3 {[%clk 0:02:56.8]}
5... Qc7 {[%clk 0:02:51.7]} 6. f4 {[%clk 0:02:52.3]} 6... a6 {[%clk 0:02:50.3]}
7. Nxc6 {[%clk 0:02:40.4]} 7... bxc6 {[%clk 0:02:49.1]} 8. Bd3 {[%clk
0:02:40.5]} 8... d5 {[%clk 0:02:49.3]} 9. O-O {[%clk 0:02:40.9]} 9... Nf6 {[%clk
0:02:48]} 10. Qe2 {[%clk 0:02:33.3]} 10... h5 {[%clk 0:02:45.8]} 11. Kh1 {[%clk
0:02:15.3]} 11... Bb4 {[%clk 0:02:00.5]} 12. Bd2 {[%clk 0:02:08.2]} 12... d4
{[%clk 0:01:53.7]} 13. Na4 {[%clk 0:02:00.8]} 13... Bxd2 {[%clk 0:01:50.5]} 14.
Qxd2 {[%clk 0:02:00.8]} 14... e5 {[%clk 0:01:48.6]} 15. c3 {[%clk 0:01:43]}
15... dxc3 {[%clk 0:01:40.7]} 16. Qxc3 {[%clk 0:01:32.8]} 16... exf4 {[%clk
0:01:40.4]} 17. e5 {[%clk 0:01:22]} 17... Nd5 {[%clk 0:01:38.7]} 18. Qc5 {[%clk
0:01:19.4]} 18... Bb7 {[%clk 0:01:16.1]} 19. Bc4 {[%clk 0:00:44.8]} 19... O-O-O
{[%clk 0:00:42.7]} 20. Bxd5 {[%clk 0:00:34.4]} 20... cxd5 {[%clk 0:00:42.2]} 21.
Qa7 {[%clk 0:00:26.5]} 21... Kd7 {[%clk 0:00:17.5]} 22. Nc5+ {[%clk 0:00:18.2]}
22... Ke8 {[%clk 0:00:17.7]} 23. Nxb7 {[%clk 0:00:15.5]} 23... Rb8 {[%clk
0:00:17.8]} 24. Nd6+ {[%clk 0:00:15.4]} 24... Kd7 {[%clk 0:00:17.2]} 25. Qxa6
{[%clk 0:00:13.4]} 25... Rhe8 {[%clk 0:00:15.8]} 26. Qa4+ {[%clk 0:00:12.4]}
26... Qc6 {[%clk 0:00:15.5]} 27. Qxc6+ {[%clk 0:00:12.1]} 27... Kxc6 {[%clk
0:00:16.3]} 28. Nxe8 {[%clk 0:00:12.9]} 28... Rxe8 {[%clk 0:00:15.7]} 29. Rxf4
{[%clk 0:00:13.8]} 29... Rxe5 {[%clk 0:00:16]} 30. Rxf7 {[%clk 0:00:14.1]} 1-0

[Event "Early-Titled-Tuesday-Blitz-October-10-2023"]
[Site "Chess.com"]
[Date "2023.10.10"]
[Round "3"]
[White "Kotofeyca"]
[Black "DefiantChair"]
[Result "0-1"]
[WhiteElo "2427"]
[BlackElo "2608"]
[TimeControl "180+1"]
[EndTime "8:27:34 PDT"]
[Termination "DefiantChair won on time"]

1. d4 {[%clk 0:02:57.5]} 1... Nf6 {[%clk 0:02:59.8]} 2. c4 {[%clk 0:02:57.5]}
2... e6 {[%clk 0:03:00.2]} 3. Nf3 {[%clk 0:02:57.7]} 3... d5 {[%clk 0:02:59.8]}
4. Nc3 {[%clk 0:02:56.5]} 4... Bb4 {[%clk 0:02:59.5]} 5. Qa4+ {[%clk 0:02:55]}
5... Nc6 {[%clk 0:02:59.5]} 6. Ne5 {[%clk 0:02:55.5]} 6... a5 {[%clk 0:02:36]}
7. Nxc6 {[%clk 0:02:50.7]} 7... bxc6 {[%clk 0:02:23.5]} 8. a3 {[%clk 0:02:33.5]}
8... Bxc3+ {[%clk 0:02:22.7]} 9. bxc3 {[%clk 0:02:34.4]} 9... O-O {[%clk
0:02:22.1]} 10. Bg5 {[%clk 0:02:20.7]} 10... Bd7 {[%clk 0:02:20.7]} 11. Qc2
{[%clk 0:02:13.7]} 11... h6 {[%clk 0:02:20.4]} 12. Bxf6 {[%clk 0:02:09.2]} 12...
Qxf6 {[%clk 0:02:20]} 13. e3 {[%clk 0:02:09.5]} 13... e5 {[%clk 0:02:14.1]} 14.
Bd3 {[%clk 0:01:54.4]} 14... exd4 {[%clk 0:02:10.7]} 15. cxd4 {[%clk 0:01:55.3]}
15... c5 {[%clk 0:02:10.9]} 16. O-O {[%clk 0:01:45.9]} 16... cxd4 {[%clk
0:02:10.7]} 17. exd4 {[%clk 0:01:45.3]} 17... c6 {[%clk 0:01:55.6]} 18. Qd2
{[%clk 0:01:28]} 18... Kh8 {[%clk 0:01:53.9]} 19. Qc3 {[%clk 0:01:24.6]} 19...
Be6 {[%clk 0:01:52.8]} 20. c5 {[%clk 0:01:21.3]} 20... Qg5 {[%clk 0:01:47.9]}
21. Kh1 {[%clk 0:01:15.3]} 21... Qf6 {[%clk 0:01:46.9]} 22. Rab1 {[%clk
0:01:14.6]} 22... Rfe8 {[%clk 0:01:42.4]} 23. Be2 {[%clk 0:00:58.7]} 23... Bf5
{[%clk 0:01:37.4]} 24. Rbe1 {[%clk 0:00:57.7]} 24... Re4 {[%clk 0:01:31.9]} 25.
Bd3 {[%clk 0:00:42.6]} 25... Rxe1 {[%clk 0:01:31.6]} 26. Rxe1 {[%clk 0:00:43.5]}
26... Bxd3 {[%clk 0:01:28.2]} 27. Qxd3 {[%clk 0:00:43.6]} 27... Rb8 {[%clk
0:01:23.8]} 28. Kg1 {[%clk 0:00:40.6]} 28... g6 {[%clk 0:01:21.8]} 29. g3 {[%clk
0:00:38]} 29... Kg7 {[%clk 0:01:18.7]} 30. h4 {[%clk 0:00:34.5]} 30... Rb2
{[%clk 0:01:15.6]} 31. Qe3 {[%clk 0:00:32.1]} 31... h5 {[%clk 0:01:10.9]} 32.
Kg2 {[%clk 0:00:28.5]} 32... a4 {[%clk 0:01:10.7]} 33. Rd1 {[%clk 0:00:25.4]}
33... Kh7 {[%clk 0:01:05.8]} 34. Rd2 {[%clk 0:00:25.4]} 34... Rb1 {[%clk
0:00:59.6]} 35. Re2 {[%clk 0:00:21.4]} 35... Rb3 {[%clk 0:00:57.7]} 36. Qe7
{[%clk 0:00:09.8]} 36... Qf3+ {[%clk 0:00:54.7]} 37. Kh2 {[%clk 0:00:07.9]}
37... Rb1 {[%clk 0:00:53.3]} 0-1

[Event "Early-Titled-Tuesday-Blitz-October-10-2023"]
[Site "Chess.com"]
[Date "2023.10.10"]
[Round "3"]
[White "Itk04"]
[Black "whiteglovethief"]
[Result "1-0"]
[WhiteElo "2761"]
[BlackElo "2554"]
[TimeControl "180+1"]
[EndTime "8:27:35 PDT"]
[Termination "Itk04 won by resignation"]

1. d4 {[%clk 0:03:00.9]} 1... Nf6 {[%clk 0:02:59.4]} 2. Bf4 {[%clk 0:02:58.3]}
2... g6 {[%clk 0:02:58.2]} 3. Nc3 {[%clk 0:02:58.3]} 3... Bg7 {[%clk 0:02:58.1]}
4. e4 {[%clk 0:02:58.5]} 4... d6 {[%clk 0:02:56.6]} 5. Qd2 {[%clk 0:02:48]} 5...
Nc6 {[%clk 0:02:53.6]} 6. O-O-O {[%clk 0:02:37.1]} 6... O-O {[%clk 0:02:47.8]}
7. f3 {[%clk 0:02:34.8]} 7... Nh5 {[%clk 0:02:37.3]} 8. Be3 {[%clk 0:02:32.5]}
8... e5 {[%clk 0:02:36.4]} 9. Nge2 {[%clk 0:01:44.7]} 9... a6 {[%clk 0:02:30.7]}
10. d5 {[%clk 0:01:42.6]} 10... Ne7 {[%clk 0:02:29.2]} 11. g4 {[%clk 0:01:42]}
11... Nf4 {[%clk 0:02:25.6]} 12. Nxf4 {[%clk 0:01:33.6]} 12... exf4 {[%clk
0:02:26.5]} 13. Bd4 {[%clk 0:01:25.6]} 13... Be5 {[%clk 0:02:15.6]} 14. h4
{[%clk 0:01:21.5]} 14... f6 {[%clk 0:02:14]} 15. Ne2 {[%clk 0:01:14.9]} 15... g5
{[%clk 0:02:10.7]} 16. hxg5 {[%clk 0:01:07.8]} 16... fxg5 {[%clk 0:02:11.6]} 17.
Bxe5 {[%clk 0:01:07.2]} 17... dxe5 {[%clk 0:02:10.8]} 18. Nc3 {[%clk 0:00:53.9]}
18... Rf6 {[%clk 0:01:59.5]} 19. d6 {[%clk 0:00:25.8]} 19... Rxd6 {[%clk
0:01:58.3]} 20. Qh2 {[%clk 0:00:25.6]} 20... h6 {[%clk 0:01:45.4]} 21. Qxh6
{[%clk 0:00:25]} 21... Rxh6 {[%clk 0:01:44.8]} 22. Rxd8+ {[%clk 0:00:24.6]}
22... Kg7 {[%clk 0:01:45.5]} 23. Rxh6 {[%clk 0:00:22.7]} 23... Kxh6 {[%clk
0:01:46.4]} 24. Re8 {[%clk 0:00:18]} 24... Ng6 {[%clk 0:01:44.6]} 25. Nd5 {[%clk
0:00:16.8]} 25... b5 {[%clk 0:01:38.1]} 26. Nxc7 {[%clk 0:00:16.2]} 26... Rb8
{[%clk 0:01:37.2]} 27. Nxa6 {[%clk 0:00:15.8]} 27... Ra8 {[%clk 0:01:25.7]} 28.
Nc7 {[%clk 0:00:13.2]} 28... Rb8 {[%clk 0:01:08.7]} 29. Bxb5 {[%clk 0:00:12.4]}
29... Nh4 {[%clk 0:01:08.3]} 30. Ba6 {[%clk 0:00:08]} 30... Bxa6 {[%clk
0:01:06]} 31. Rxb8 {[%clk 0:00:08.1]} 31... Be2 {[%clk 0:01:05.9]} 32. Rb6+
{[%clk 0:00:07.4]} 32... Kh7 {[%clk 0:01:03]} 33. Kd2 {[%clk 0:00:04.9]} 33...
Bxf3 {[%clk 0:01:02]} 34. Ne6 {[%clk 0:00:05.4]} 34... Bxg4 {[%clk 0:00:55.5]}
35. Nxg5+ {[%clk 0:00:05.6]} 35... Kg7 {[%clk 0:00:56.2]} 36. a4 {[%clk
0:00:06.5]} 36... f3 {[%clk 0:00:55.7]} 37. Ke3 {[%clk 0:00:06.1]} 37... Ng2+
{[%clk 0:00:54.6]} 38. Kf2 {[%clk 0:00:06.7]} 38... Nh4 {[%clk 0:00:50.2]} 39.
a5 {[%clk 0:00:06.9]} 1-0

[Event "Early-Titled-Tuesday-Blitz-October-10-2023"]
[Site "Chess.com"]
[Date "2023.10.10"]
[Round "3"]
[White "IngOscarArdila"]
[Black "Gyulamiryan-koryun"]
[Result "1-0"]
[WhiteElo "2321"]
[BlackElo "2013"]
[TimeControl "180+1"]
[EndTime "8:27:36 PDT"]
[Termination "IngOscarArdila won on time"]

1. d4 {[%clk 0:03:00.1]} 1... Nf6 {[%clk 0:02:09.4]} 2. c4 {[%clk 0:02:59]} 2...
c5 {[%clk 0:02:07.9]} 3. d5 {[%clk 0:02:58.6]} 3... b5 {[%clk 0:02:07.4]} 4. Qc2
{[%clk 0:02:58.4]} 4... g6 {[%clk 0:02:03.1]} 5. e4 {[%clk 0:02:58.3]} 5... d6
{[%clk 0:02:00.1]} 6. h3 {[%clk 0:02:57.7]} 6... Bg7 {[%clk 0:02:00.2]} 7. cxb5
{[%clk 0:02:57.9]} 7... a6 {[%clk 0:01:59.8]} 8. Nc3 {[%clk 0:02:58.2]} 8... O-O
{[%clk 0:01:59.3]} 9. Nf3 {[%clk 0:02:57.9]} 9... Nbd7 {[%clk 0:01:56.4]} 10.
Bf4 {[%clk 0:02:57.1]} 10... Nb6 {[%clk 0:01:55.7]} 11. bxa6 {[%clk 0:02:51.7]}
11... Bxa6 {[%clk 0:01:54.9]} 12. Bxa6 {[%clk 0:02:52.3]} 12... Rxa6 {[%clk
0:01:54.6]} 13. O-O {[%clk 0:02:53]} 13... Nfd7 {[%clk 0:01:39.3]} 14. Rfe1
{[%clk 0:02:49.4]} 14... Qa8 {[%clk 0:01:31.9]} 15. e5 {[%clk 0:02:32.2]} 15...
Nxd5 {[%clk 0:01:22.9]} 16. Nxd5 {[%clk 0:02:10.6]} 16... Qxd5 {[%clk
0:01:21.5]} 17. Red1 {[%clk 0:02:05.4]} 17... Qc6 {[%clk 0:01:17.5]} 18. exd6
{[%clk 0:02:05.1]} 18... exd6 {[%clk 0:01:15.7]} 19. Rxd6 {[%clk 0:02:04.2]}
19... Qb7 {[%clk 0:01:15.2]} 20. Rad1 {[%clk 0:01:49.8]} 20... Nf6 {[%clk
0:01:04.1]} 21. Rxa6 {[%clk 0:01:42.7]} 21... Qxa6 {[%clk 0:01:02.3]} 22. b3
{[%clk 0:01:40.5]} 22... Ra8 {[%clk 0:00:56.2]} 23. a4 {[%clk 0:01:39.2]} 23...
h6 {[%clk 0:00:37.7]} 24. Qxc5 {[%clk 0:01:31.3]} 24... Kh7 {[%clk 0:00:33.1]}
25. Qc7 {[%clk 0:01:16.7]} 25... Qe2 {[%clk 0:00:30.1]} 26. Re1 {[%clk
0:01:12.8]} 26... Qb2 {[%clk 0:00:26.6]} 27. Qxf7 {[%clk 0:01:11.6]} 27... Rf8
{[%clk 0:00:21.6]} 28. Qb7 {[%clk 0:01:04.7]} 28... g5 {[%clk 0:00:18.7]} 29.
Re7 {[%clk 0:00:58.3]} 29... Nh5 {[%clk 0:00:16.7]} 30. Be5 {[%clk 0:00:53.5]}
30... Qb1+ {[%clk 0:00:08.2]} 31. Kh2 {[%clk 0:00:53.8]} 31... Rg8 {[%clk
0:00:07.2]} 32. g4 {[%clk 0:00:45.5]} 32... Nf4 {[%clk 0:00:05.6]} 33. Rxg7+
{[%clk 0:00:41.9]} 1-0